[Event "WYCC 2018 G18"]
[Site "Halkidiki"]
[Date "2018.10.24"]
[Round "6"]
[White "Koehler, Inken"]
[Black "Radeva, Viktoria"]
[Result "0-1"]
[ECO "B43"]
[WhiteElo "1934"]
[BlackElo "2163"]
[Annotator "NA"]
[PlyCount "92"]
[EventDate "2018.10.20"]
[EventType "swiss"]
[EventCountry "GRE"]
[SourceTitle "playchess.com"]
[Source "ChessBase"]
[SourceQuality "1"]
[TimeControl "40/5400+30:1800+30"]

1. e4 {[%emt 0:00:00]} c5 {[%emt 0:00:00]} 2. Nf3 {[%emt 0:00:00]} e6 {[%emt 0:00:00]} 3. d4 {[%emt 0:00:00]} cxd4 {[%emt 0:00:00]} 4. Nxd4 {[%emt 0:00:00]} a6 {[%emt 0:00:00]} 5. Nc3 {[%emt 0:00:11]} Qc7 {[%emt 0:00:00]} 6. g3 {[%emt 0:00:15]} Bb4 {[%emt 0:08:20]} 7. Bd2 {[%emt 0:00:31]} Nc6 {[%emt 0:00:41]} 8. Nb3 {[%emt 0:00:30]} Nf6 {[%emt 0:00:30]} 9. Bg2 {[%emt 0:00:37]} O-O {[%emt 0:03:02]} 10. O-O {[%emt 0:00:44]} Be7 {[%emt 0:07:41]} 11. f4 {[%emt 0:01:53]} d6 {[%emt 0:00:10]} 12. g4 {[%emt 0:01:56]} b5 {[%emt 0:08:26]} 13. Kh1 $11 {[%emt 0:20:39]} Bb7 {[%emt 0:03:57]} 14. g5 {[%emt 0:01:23]} Nd7 {[%emt 0:03:18]} 15. Qg4 {[%emt 0:01:27]} Rfe8 {[%emt 0:05:18]} 16. Rae1 {[%emt 0:03:14]} Nf8 {[%emt 0:09:03]} 17. Ne2 {[%emt 0:09:48]} Qd7 {[%emt 0:10:32]} 18. Ned4 {[%emt 0:05:13]} Nxd4 {[%emt 0:01:31]} 19. Nxd4 {[%emt 0:00:06]} Rac8 {[%emt 0:02:39]} 20. c3 {[%emt 0:04:20]} d5 {[%emt 0:04:04]} 21. e5 {[%emt 0:01:38]} Bc5 {[%emt 0:01:57]} 22. Nb3 {[%emt 0:04:03]} Bb6 {[%emt 0:00:59]} 23. Be3 {[%emt 0:01:05]} Qc7 {[%emt 0:03:22]} 24. Qg3 {[%emt 0:08:56]} Bxe3 {[%emt 0:02:40]} 25. Qxe3 {[%emt 0:00:35]} Ng6 {[%emt 0:01:50]} 26. Nd4 {[%emt 0:01:42]} Qc4 {[%emt 0:01:57]} 27. a3 {[%emt 0:01:50]} Qc5 {[%emt 0:04:46]} 28. Rf3 {[%emt 0:04:16]} Rc7 {[%emt 0:01:05]} 29. Rh3 {[%emt 0:01:35]} Bc8 {[%emt 0:01:49]} 30. Bf1 {[%emt 0:02:58]} Nf8 {[%emt 0:02:50]} 31. Bd3 {[%emt 0:01:26]} Bd7 {[%emt 0:04:36]} 32. Qf2 {[%emt 0:06:16]} g6 {[%emt 0:01:07]} 33. Rh6 {[%emt 0:11:25]} a5 {[%emt 0:00:49]} 34. Qd2 {[%emt 0:01:21]} b4 {[%emt 0:02:03]} 35. Nb3 {[%emt 0:01:26]} bxc3 {[%emt 0:01:07]} 36. Qc2 {[%emt 0:00:39]} Qb6 {[%emt 0:00:34]} 37. bxc3 {[%emt 0:03:11]} Ba4 {[%emt 0:01:11]} 38. Rb1 {[%emt 0:00:20]} Rb8 {[%emt 0:01:58]} 39. Nd4 {[%emt 0:01:14]} Bxc2 {[%emt 0:00:31]} 40. Rxb6 {[%emt 0:00:00]} Rxb6 {[%emt 0:00:00]} 41. Bxc2 {[%emt 0:00:47]} Rxc3 {[%emt 0:00:30]} 42. f5 {[%emt 0:01:40]} exf5 {[%emt 0:01:39]} 43. Bxf5 {[%emt 0:03:47]} Rb2 {[%emt 0:01:10]} 44. Bc2 {[%emt 0:01:17]} Rcxc2 {[%emt 0:00:38]} 45. Nxc2 {[%emt 0:00:11]} Rxc2 {[%emt 0:00:02]} 46. Rh3 {[%emt 0:00:16]} d4 {[%emt 0:00:14]} 0-1

[Event "WYCC 2018 G18"]
[Site "Halkidiki"]
[Date "2018.10.24"]
[Round "6"]
[White "Vlkova, Anezka"]
[Black "Antolak, Julia"]
[Result "1/2-1/2"]
[ECO "B24"]
[WhiteElo "1925"]
[BlackElo "2240"]
[Annotator "NA"]
[PlyCount "118"]
[EventDate "2018.10.20"]
[EventType "swiss"]
[EventCountry "GRE"]
[SourceTitle "playchess.com"]
[Source "ChessBase"]
[SourceQuality "1"]
[TimeControl "40/5400+30:1800+30"]

1. e4 {[%emt 0:00:00]} c5 {[%emt 0:00:00]} 2. Nc3 {[%emt 0:00:00]} Nc6 {[%emt 0:00:00]} 3. g3 {[%emt 0:00:00]} g6 {[%emt 0:00:00]} 4. Bg2 {[%emt 0:00:00]} Bg7 {[%emt 0:00:02]} 5. d3 {[%emt 0:00:00]} e6 {[%emt 0:00:19]} 6. Nge2 {[%emt 0:00:12]} Nge7 {[%emt 0:01:58]} 7. O-O {[%emt 0:00:50]} O-O {[%emt 0:01:29]} 8. Bg5 {[%emt 0:01:16]} d6 {[%emt 0:20:57]} 9. Qd2 {[%emt 0:01:00]} Nd4 {[%emt 0:02:05]} 10. Rab1 {[%emt 0:00:12] B25: Closed Sicilian: 3 g3, lines without early Be3} (10. Rae1 e5 11. Nxd4 cxd4 12. Bxe7 Qxe7 13. Nd5 Qd8 14. f4 Be6 15. f5 Bxd5 16. exd5 Bf6 17. fxg6 hxg6 {0-1 (62) Jobava,B (2730)-Wojtaszek,R (2717) Poznan 2012}) 10... Bd7 {[%emt 0:03:03]} 11. b4 {[%emt 0:01:12]} cxb4 {[%emt 0:12:50]} 12. Rxb4 {[%emt 0:00:11]} Nxe2+ {[%emt 0:00:08]} 13. Nxe2 {[%emt 0:00:05]} Bc6 $146 {[%emt 0:00:23]} ({Predecessor:} 13... Rb8 14. Rfb1 b6 15. c4 Rc8 16. Nc3 Re8 17. a4 f6 {1-0 (42) Kley,T (2195)-Loehr,M (2145) Germany 1998}) 14. d4 {[%emt 0:07:53]} f6 {[%emt 0:07:30]} 15. Be3 {[%emt 0:10:02]} d5 {[%emt 0:05:04]} 16. Nf4 {[%emt 0:04:11]} Qd7 {[%emt 0:09:31]} 17. Bh3 {[%emt 0:08:29]} f5 {[%emt 0:01:27]} 18. e5 {[%emt 0:11:04]} Nc8 {[%emt 0:01:16]} 19. Nd3 {[%emt 0:01:02]} Nb6 {[%emt 0:00:25]} 20. Nc5 {[%emt 0:00:58]} Qf7 {[%emt 0:00:30]} 21. Bh6 {[%emt 0:13:14]} Nc4 {[%emt 0:02:08]} 22. Qg5 {[%emt 0:00:46]} Bxh6 {[%emt 0:01:01]} 23. Qxh6 {[%emt 0:00:05]} b6 {[%emt 0:00:24]} 24. Nd3 {[%emt 0:01:38]} Rac8 {[%emt 0:01:26]} 25. Rc1 {[%emt 0:09:03]} Rc7 {[%emt 0:03:01]} 26. Bf1 {[%emt 0:01:19]} Rfc8 {[%emt 0:09:18]} 27. Ne1 {[%emt 0:03:08]} Na5 {[%emt 0:02:48]} 28. Bd3 {[%emt 0:02:37]} Bb7 {[%emt 0:01:44]} 29. Nf3 {[%emt 0:01:14]} Qe7 {[%emt 0:00:59]} 30. Rcb1 {[%emt 0:00:37]} Rc3 {[%emt 0:01:35]} 31. h4 {[%emt 0:01:42]} Qg7 {[%emt 0:05:31]} 32. Qxg7+ {[%emt 0:07:41]} Kxg7 {[%emt 0:00:02]} 33. Ra4 {[%emt 0:07:16]} Bc6 {[%emt 0:00:27]} 34. Rab4 {[%emt 0:00:06]} Bd7 {[%emt 0:00:16]} 35. R1b2 {[%emt 0:02:26]} Ra3 {[%emt 0:03:54]} 36. Kf1 {[%emt 0:05:53]} h6 {[%emt 0:01:01]} 37. Ke2 {[%emt 0:00:19]} Ba4 {[%emt 0:00:41]} 38. Nd2 {[%emt 0:00:42]} Nc6 {[%emt 0:01:11]} 39. Nb1 {[%emt 0:00:15]} Rxd3 {[%emt 0:01:18]} 40. cxd3 {[%emt 0:00:00]} Nxb4 {[%emt 0:00:00]} 41. Rxb4 {[%emt 0:00:57]} Rc2+ {[%emt 0:00:48]} 42. Ke3 {[%emt 0:01:43]} Bc6 {[%emt 0:19:29]} 43. a4 {[%emt 0:01:40]} Kf8 {[%emt 0:01:18]} 44. Na3 {[%emt 0:04:14]} Ra2 {[%emt 0:01:46]} 45. Nb5 {[%emt 0:00:17]} Bxb5 {[%emt 0:02:53]} 46. axb5 {[%emt 0:00:05]} Ke7 {[%emt 0:00:42]} 47. Rb1 {[%emt 0:03:38]} Kd7 {[%emt 0:00:43]} 48. Rb3 {[%emt 0:04:34]} a6 {[%emt 0:01:55]} 49. bxa6 $11 {[%emt 0:00:19]} Rxa6 {[%emt 0:00:05]} 50. Rb2 {[%emt 0:00:31]} Kc6 {[%emt 0:00:34]} 51. Kd2 {[%emt 0:00:12]} Ra3 {[%emt 0:02:25]} 52. Rc2+ {[%emt 0:03:59]} Kb7 {[%emt 0:00:04]} 53. Rb2 {[%emt 0:00:24]} Ra1 {[%emt 0:00:32]} 54. Kc3 {[%emt 0:00:50]} Rh1 {[%emt 0:01:45]} 55. Kd2 {[%emt 0:01:26]} f4 {[%emt 0:00:27]} 56. Kc3 {[%emt 0:01:49]} Rh2 {[%emt 0:01:31]} 57. Rb1 {[%emt 0:02:10]} Rxf2 {[%emt 0:01:56]} 58. gxf4 Rg2 59. h5 {[%emt 0:01:13]} gxh5 {[%emt 0:01:32]} 1/2-1/2

[Event "WYCC 2018 G18"]
[Site "Halkidiki"]
[Date "2018.10.24"]
[Round "6"]
[White "Kieu, Bich Thuy"]
[Black "Egyed, Judit"]
[Result "1-0"]
[ECO "E70"]
[WhiteElo "1913"]
[BlackElo "2089"]
[Annotator "NA"]
[PlyCount "77"]
[EventDate "2018.10.20"]
[EventType "swiss"]
[EventCountry "GRE"]
[SourceTitle "playchess.com"]
[Source "ChessBase"]
[SourceQuality "1"]
[TimeControl "40/5400+30:1800+30"]

1. d4 Nf6 2. c4 g6 3. Nc3 Bg7 4. e4 d6 5. Bd3 O-O 6. Nge2 Nc6 7. Bg5 h6 8. Bh4 a6 9. f3 e5 10. d5 Ne7 11. Qd2 Nd7 12. Bc2 Rb8 13. a4 Nb6 14. b3 Bd7 15. O-O g5 16. Bf2 Ng6 17. Kh1 Nc8 18. b4 Nce7 19. Rab1 Qc8 20. c5 Nf4 21. b5 Neg6 22. c6 bxc6 23. bxc6 Rxb1 24. Rxb1 Bh3 25. Nxf4 Nxf4 26. gxh3 Qxh3 27. Bg3 h5 28. Qf2 h4 29. Bxf4 exf4 30. Ne2 Bf6 31. Rg1 Kh8 32. Rg4 Rb8 33. Ng1 Qxg4 34. fxg4 Rb2 35. Nf3 Kg7 36. h3 Kh6 37. Qe2 a5 38. e5 dxe5 39. d6 1-0

[Event "WYCC 2018 G18"]
[Site "Halkidiki"]
[Date "2018.10.24"]
[Round "6"]
[White "Tsivelekidou, Evgenia"]
[Black "Hunt, Fikirte"]
[Result "1/2-1/2"]
[ECO "A45"]
[WhiteElo "1891"]
[BlackElo "1827"]
[Annotator "NA"]
[PlyCount "73"]
[EventDate "2018.10.20"]
[EventType "swiss"]
[EventCountry "GRE"]
[SourceTitle "playchess.com"]
[Source "ChessBase"]
[SourceQuality "1"]
[TimeControl "40/5400+30:1800+30"]

1. d4 {[%emt 0:00:00]} Nf6 {[%emt 0:00:00]} 2. Bf4 {[%emt 0:00:00]} g6 {[%emt 0:00:00]} 3. Nc3 {[%emt 0:00:00]} d5 {[%emt 0:00:20]} 4. e3 {[%emt 0:00:07]} Bg7 {[%emt 0:00:16]} 5. h4 {[%emt 0:00:13]} c6 {[%emt 0:02:00]} 6. Nf3 {[%emt 0:01:24]} b5 {[%emt 0:01:47]} 7. Ne5 {[%emt 0:02:08]} Qa5 {[%emt 0:06:23]} 8. Bd3 {[%emt 0:12:57]} b4 {[%emt 0:15:34]} 9. Ne2 {[%emt 0:02:33]} Qb6 10. c3 {[%emt 0:05:24]} a5 {[%emt 0:08:11]} 11. c4 {[%emt 0:05:20]} Nbd7 {[%emt 0:05:21]} 12. c5 {[%emt 0:04:44]} Qb7 {[%emt 0:00:06]} 13. Ng3 {[%emt 0:01:39]} Nxe5 {[%emt 0:07:02]} 14. Bxe5 {[%emt 0:00:22]} Qa7 {[%emt 0:00:35]} 15. Qc2 {[%emt 0:04:49]} Ba6 {[%emt 0:01:38]} 16. Bxa6 {[%emt 0:05:36]} Qxa6 {[%emt 0:00:03]} 17. Rc1 {[%emt 0:13:10]} h5 {[%emt 0:06:19]} 18. Ne2 {[%emt 0:01:47]} O-O {[%emt 0:07:49]} 19. Nf4 {[%emt 0:07:33]} a4 {[%emt 0:01:21]} 20. Nd3 {[%emt 0:04:29]} Qb5 {[%emt 0:03:28]} 21. Bxf6 {[%emt 0:04:57]} Bxf6 {[%emt 0:00:22]} 22. Qd2 {[%emt 0:01:18]} Rab8 {[%emt 0:02:00]} 23. g3 {[%emt 0:02:22]} Rfe8 {[%emt 0:01:24]} 24. f4 {[%emt 0:01:06]} Qb7 {[%emt 0:01:23]} 25. Nf2 {[%emt 0:00:44]} Qd7 {[%emt 0:00:41]} 26. Qe2 {[%emt 0:01:12]} Kg7 {[%emt 0:00:46]} 27. Kd2 {[%emt 0:01:38]} Rh8 {[%emt 0:00:28]} 28. Rcg1 {[%emt 0:01:18]} Qa7 {[%emt 0:02:31]} 29. Qd3 {[%emt 0:00:29]} Qa5 {[%emt 0:00:40]} 30. Kc1 {[%emt 0:00:58]} Qb5 {[%emt 0:01:27]} 31. Qxb5 {[%emt 0:01:11]} Rxb5 {[%emt 0:00:09]} 32. Nd3 {[%emt 0:00:21]} e6 {[%emt 0:00:54]} 33. Rh2 {[%emt 0:01:16]} Be7 {[%emt 0:00:58]} 34. Kd2 {[%emt 0:02:00]} f5 {[%emt 0:00:21]} 35. Rc1 {[%emt 0:00:39]} Rc8 {[%emt 0:01:46]} 36. Rhh1 {[%emt 0:00:23]} Bd8 {[%emt 0:00:43]} 37. Rhd1 {[%emt 0:02:18]} 1/2-1/2

[Event "WYCC 2018 G18"]
[Site "Halkidiki"]
[Date "2018.10.24"]
[Round "6"]
[White "Dong, Khanh Linh"]
[Black "Rozman, Monika"]
[Result "0-1"]
[ECO "E09"]
[WhiteElo "1879"]
[BlackElo "2141"]
[Annotator "NA"]
[PlyCount "108"]
[EventDate "2018.10.20"]
[EventType "swiss"]
[EventCountry "GRE"]
[SourceTitle "playchess.com"]
[Source "ChessBase"]
[SourceQuality "1"]
[TimeControl "40/5400+30:1800+30"]

1. d4 {[%emt 0:00:00]} d5 {[%emt 0:00:00]} 2. Nf3 {[%emt 0:00:00]} Nf6 {[%emt 0:00:00]} 3. c4 {[%emt 0:00:00]} c6 {[%emt 0:00:00]} 4. g3 {[%emt 0:00:00]} e6 {[%emt 0:01:58]} 5. Bg2 {[%emt 0:00:00]} Be7 {[%emt 0:00:29]} 6. O-O {[%emt 0:00:12]} O-O {[%emt 0:00:16]} 7. Nbd2 {[%emt 0:00:18]} Nbd7 {[%emt 0:01:58]} 8. Qc2 {[%emt 0:00:25]} b6 {[%emt 0:03:06]} 9. e4 dxc4 {[%emt 0:03:15]} 10. Nxc4 {[%emt 0:12:43]} Bb7 {[%emt 0:04:46]} 11. Rd1 {[%emt 0:06:58]} Rc8 {[%emt 0:11:26]} 12. Ne3 {[%emt 0:06:20]} Qc7 {[%emt 0:02:12]} 13. b3 {[%emt 0:09:21]} Rfd8 {[%emt 0:05:02]} 14. Nc4 {[%emt 0:09:44]} Qb8 15. Bf4 Qa8 {[%emt 0:00:50]} 16. Bd6 {[%emt 0:03:43]} Bf8 {[%emt 0:01:51] [#]} 17. e5 $16 {[%emt 0:07:22]} Ne8 {[%emt 0:17:49]} 18. Ng5 {[%emt 0:05:03]} g6 {[%emt 0:00:12]} 19. Ne4 {[%emt 0:04:02]} c5 {[%emt 0:02:39]} 20. Bxf8 {[%emt 0:09:33]} Kxf8 {[%emt 0:03:03]} 21. d5 {[%emt 0:11:16]} Bxd5 {[%emt 0:03:35]} 22. Ned6 {[%emt 0:00:41]} Bxg2 {[%emt 0:04:59]} 23. Nxc8 {[%emt 0:04:22]} Bh3 {[%emt 0:03:35]} 24. f4 {[%emt 0:04:18]} Qxc8 {[%emt 0:03:23]} 25. Qd3 {[%emt 0:01:11]} Bf5 {[%emt 0:00:37]} 26. Qf3 {[%emt 0:01:18]} h5 {[%emt 0:01:52]} 27. Ne3 {[%emt 0:00:38]} Nb8 {[%emt 0:00:33]} 28. Nxf5 {[%emt 0:00:30]} exf5 29. Rxd8 {[%emt 0:00:02]} Qxd8 {[%emt 0:00:35]} 30. Rd1 {[%emt 0:00:30]} Qc7 {[%emt 0:04:22]} 31. Qd5 {[%emt 0:00:53]} Nc6 32. e6 Nd4 {[%emt 0:01:40]} 33. exf7 {[%emt 0:02:07]} Nf6 {[%emt 0:02:12]} 34. Qa8+ {[%emt 0:01:04]} Kxf7 {[%emt 0:00:05]} 35. b4 {[%emt 0:01:17]} Qe7 {[%emt 0:01:57]} 36. bxc5 {[%emt 0:01:10]} bxc5 {[%emt 0:02:27]} 37. Qg2 {[%emt 0:00:14]} Qe3+ {[%emt 0:01:04]} 38. Kh1 {[%emt 0:00:51]} Ne4 {[%emt 0:02:05]} 39. Rf1 {[%emt 0:00:21]} Qe2 {[%emt 0:00:54]} 40. Qxe2 {[%emt 0:00:00]} Nxe2 {[%emt 0:00:00]} 41. Rb1 {[%emt 0:01:35]} c4 {[%emt 0:00:34]} 42. Rb2 {[%emt 0:01:16]} Nd4 {[%emt 0:02:09]} 43. Rb4 {[%emt 0:00:42]} Nd6 44. Kg2 {[%emt 0:01:55]} Ke6 {[%emt 0:00:19]} 45. Kf2 {[%emt 0:00:12]} Kd5 {[%emt 0:00:06]} 46. Rb8 {[%emt 0:00:34]} c3 {[%emt 0:01:31]} 47. Ke3 {[%emt 0:00:35]} c2 {[%emt 0:01:34]} 48. Kd2 {[%emt 0:00:14]} Nc4+ {[%emt 0:00:50]} 49. Kc1 {[%emt 0:00:10]} Ne3 {[%emt 0:01:15]} 50. Kd2 {[%emt 0:01:40]} Nc4+ {[%emt 0:00:52]} 51. Kc1 {[%emt 0:00:04]} Ke4 {[%emt 0:00:05]} 52. Rb7 {[%emt 0:03:26]} Kd3 {[%emt 0:02:11]} 53. Rd7 {[%emt 0:00:15]} Nb6 {[%emt 0:00:19]} 54. Rd8 {[%emt 0:00:36]} Na4 {[%emt 0:00:21]} 0-1

[Event "WYCC 2018 G18"]
[Site "Halkidiki"]
[Date "2018.10.24"]
[Round "6"]
[White "Nemcova, Kamila"]
[Black "Tonso, Liina"]
[Result "0-1"]
[ECO "B03"]
[WhiteElo "1879"]
[BlackElo "1805"]
[Annotator "NA"]
[PlyCount "40"]
[EventDate "2018.10.20"]
[EventType "swiss"]
[EventCountry "GRE"]
[SourceTitle "playchess.com"]
[Source "ChessBase"]
[SourceQuality "1"]
[TimeControl "40/5400+30:1800+30"]

1. e4 {[%emt 0:00:00]} Nf6 {[%emt 0:00:00]} 2. e5 {[%emt 0:00:41]} Nd5 {[%emt 0:00:00]} 3. c4 {[%emt 0:00:28]} Nb6 {[%emt 0:00:06]} 4. d4 {[%emt 0:00:05]} d6 {[%emt 0:00:30]} 5. exd6 {[%emt 0:00:07]} cxd6 {[%emt 0:00:17]} 6. Be3 {[%emt 0:12:48]} g6 {[%emt 0:02:04]} 7. d5 {[%emt 0:03:28]} Bg7 {[%emt 0:05:39]} 8. Bd4 {[%emt 0:03:02]} Bxd4 {[%emt 0:04:56]} 9. Qxd4 {[%emt 0:00:40]} O-O {[%emt 0:00:44]} 10. Nf3 {[%emt 0:02:27]} e5 {[%emt 0:06:48]} 11. dxe6 {[%emt 0:06:58]} Bxe6 {[%emt 0:02:21]} 12. Be2 {[%emt 0:01:37]} Nc6 {[%emt 0:04:24]} 13. Qf4 {[%emt 0:02:31]} d5 {[%emt 0:14:20]} 14. c5 {[%emt 0:04:44]} Nd7 {[%emt 0:03:17]} 15. b4 {[%emt 0:11:00]} a5 {[%emt 0:05:54]} 16. b5 {[%emt 0:10:42]} Nb4 {[%emt 0:02:33]} 17. Kd1 {[%emt 0:10:08]} Nxc5 {[%emt 0:05:05]} 18. Nbd2 {[%emt 0:10:55]} Bf5 {[%emt 0:09:04]} 19. Nd4 {[%emt 0:07:24]} Qf6 {[%emt 0:02:43]} 20. N2b3 {[%emt 0:04:21]} Bc2+ {[%emt 0:01:24]} 0-1

[Event "WYCC 2018 G18"]
[Site "Halkidiki"]
[Date "2018.10.24"]
[Round "6"]
[White "Salimova, Asal"]
[Black "Mocanu, Valeria"]
[Result "1-0"]
[ECO "D00"]
[WhiteElo "1870"]
[BlackElo "1800"]
[Annotator "NA"]
[PlyCount "127"]
[EventDate "2018.10.20"]
[EventType "swiss"]
[EventCountry "GRE"]
[SourceTitle "playchess.com"]
[Source "ChessBase"]
[SourceQuality "1"]
[TimeControl "40/5400+30:1800+30"]

1. d4 d5 2. Bf4 Nf6 3. e3 c5 4. Nf3 Nc6 5. c3 Qb6 6. Qc2 Bf5 7. dxc5 Bxc2 8. cxb6 axb6 9. Na3 Bg6 10. Nb5 Rc8 11. Rd1 e6 12. Nd6+ Bxd6 13. Bxd6 Ne4 14. Ba3 Nc5 15. Nd4 O-O 16. Be2 Rfd8 17. O-O Ne5 18. f4 Nc4 19. Bxc4 dxc4 20. g4 Bd3 21. Rfe1 Ne4 22. Bb4 Ra8 23. a3 Nc5 24. Rd2 Be4 25. Red1 Nd3 26. Be7 Rd7 27. Bh4 Rd5 28. h3 e5 29. fxe5 Rxe5 30. Bg3 Re7 31. Bd6 Rd7 32. Bf4 Nxf4 33. exf4 Bd3 34. Re1 Rad8 35. Nf3 f6 36. Kf2 Kf7 37. Re3 Re8 38. Rxe8 Kxe8 39. Ne1 Bg6 40. Rxd7 Kxd7 41. Ke3 Kd6 42. Kd4 b5 43. Ng2 Bf7 44. Ne3 g6 45. g5 fxg5 46. fxg5 Be6 47. h4 b6 48. a4 bxa4 49. Nxc4+ Kc6 50. Nd2 Bd5 51. c4 Bg2 52. Nb1 Bf1 53. Nc3 b5 54. Nxb5 Kb6 55. Nc3 Ka5 56. Kc5 Bh3 57. Nd5 Bf5 58. Nf6 Bd3 59. Nxh7 Be4 60. Nf6 Bf3 61. h5 gxh5 62. g6 Bg4 63. Nxg4 hxg4 64. g7 1-0

[Event "WYCC 2018 G18"]
[Site "Halkidiki"]
[Date "2018.10.24"]
[Round "6"]
[White "Nguyen, Hong Ngoc"]
[Black "Yurdakul, Didem Nuray"]
[Result "1-0"]
[ECO "D04"]
[WhiteElo "1861"]
[BlackElo "1604"]
[Annotator "NA"]
[PlyCount "107"]
[EventDate "2018.10.20"]
[EventType "swiss"]
[EventCountry "GRE"]
[SourceTitle "playchess.com"]
[Source "ChessBase"]
[SourceQuality "1"]
[TimeControl "40/5400+30:1800+30"]

1. d4 {[%emt 0:00:00]} d5 {[%emt 0:00:00]} 2. Nf3 {[%emt 0:00:00]} Nf6 {[%emt 0:00:00]} 3. e3 {[%emt 0:00:04]} Bg4 {[%emt 0:00:17]} 4. Nbd2 {[%emt 0:01:06]} e6 {[%emt 0:01:23]} 5. Be2 {[%emt 0:00:42]} Bd6 {[%emt 0:00:57]} 6. c4 {[%emt 0:00:39]} c6 {[%emt 0:00:24]} 7. h3 {[%emt 0:00:59]} Bh5 {[%emt 0:01:58]} 8. O-O {[%emt 0:00:55]} O-O {[%emt 0:00:48]} 9. b3 {[%emt 0:03:54]} Nbd7 {[%emt 0:03:40]} 10. Bb2 {[%emt 0:00:28]} Re8 {[%emt 0:05:10]} 11. Ne5 {[%emt 0:01:48]} Bxe2 {[%emt 0:06:02]} 12. Qxe2 {[%emt 0:00:13]} Bc7 {[%emt 0:03:15]} 13. Nxd7 {[%emt 0:04:21]} Nxd7 {[%emt 0:09:37]} 14. e4 {[%emt 0:02:59]} e5 {[%emt 0:05:12]} 15. exd5 {[%emt 0:02:22]} exd4 {[%emt 0:00:07]} 16. Qd3 {[%emt 0:01:19]} cxd5 {[%emt 0:00:50]} 17. cxd5 {[%emt 0:01:29]} Nf6 {[%emt 0:01:00]} 18. Nf3 {[%emt 0:01:26]} Qxd5 {[%emt 0:00:16]} 19. Qxd4 {[%emt 0:00:21]} Bb6 {[%emt 0:03:50]} 20. Qh4 {[%emt 0:02:59]} Re4 {[%emt 0:05:23]} 21. Rad1 {[%emt 0:12:57]} Qc6 {[%emt 0:11:45]} 22. Qg3 {[%emt 0:04:43]} Rae8 {[%emt 0:09:05]} 23. Nd4 {[%emt 0:08:09]} Nh5 {[%emt 0:02:54]} 24. Qf3 {[%emt 0:02:41]} Qg6 {[%emt 0:00:19]} 25. Kh1 {[%emt 0:03:56]} Nf4 {[%emt 0:05:23]} 26. Nb5 {[%emt 0:02:25]} Re2 {[%emt 0:08:55]} 27. Bd4 {[%emt 0:00:33]} Bxd4 {[%emt 0:01:49]} 28. Rxd4 {[%emt 0:00:54]} Qb6 {[%emt 0:04:38]} 29. Rxf4 {[%emt 0:02:52]} Qxb5 {[%emt 0:00:12]} 30. Rc1 {[%emt 0:02:16]} R2e7 {[%emt 0:02:54]} 31. a4 {[%emt 0:01:00]} Qe5 {[%emt 0:00:21]} 32. Rfc4 {[%emt 0:01:22]} Qb8 {[%emt 0:01:21]} 33. Qc3 {[%emt 0:00:50]} Kf8 {[%emt 0:01:42]} 34. Rg4 {[%emt 0:00:53]} Qe5 {[%emt 0:00:16]} 35. Qd3 {[%emt 0:01:10]} Kg8 {[%emt 0:01:27]} 36. Rg3 {[%emt 0:02:42]} Qf4 {[%emt 0:01:04]} 37. Qc3 {[%emt 0:00:59]} Qe5 {[%emt 0:00:56]} 38. Kh2 {[%emt 0:00:59]} Qxc3 {[%emt 0:00:23]} 39. Rgxc3 {[%emt 0:00:08]} Kf8 {[%emt 0:00:42]} 40. Kg3 {[%emt 0:00:00]} f6 {[%emt 0:00:00]} 41. b4 {[%emt 0:01:33]} Re4 {[%emt 0:01:43]} 42. Rc4 {[%emt 0:00:18]} Rxc4 {[%emt 0:01:04]} 43. Rxc4 {[%emt 0:00:04]} Kf7 {[%emt 0:00:03]} 44. h4 {[%emt 0:03:09]} Re5 {[%emt 0:01:16]} 45. Kf4 {[%emt 0:01:09]} Re2 {[%emt 0:00:19]} 46. f3 {[%emt 0:00:41]} g6 {[%emt 0:04:59]} 47. g4 {[%emt 0:00:57]} Re5 {[%emt 0:01:19]} 48. g5 {[%emt 0:04:02]} Re7 {[%emt 0:06:56]} 49. b5 {[%emt 0:03:07]} fxg5+ {[%emt 0:02:51]} 50. hxg5 {[%emt 0:00:13]} Ke8 {[%emt 0:00:51]} 51. Re4 {[%emt 0:00:57]} Rxe4+ {[%emt 0:07:24]} 52. fxe4 {[%emt 0:00:30]} Kf7 {[%emt 0:01:56]} 53. Ke5 {[%emt 0:00:14]} Ke7 {[%emt 0:00:04]} 54. a5 {[%emt 0:00:31]} 1-0

[Event "WYCC 2018 G18"]
[Site "Halkidiki"]
[Date "2018.10.24"]
[Round "6"]
[White "Miller, Rachel"]
[Black "Ramirez Toledo, Ayleen Maribel"]
[Result "1-0"]
[ECO "B01"]
[WhiteElo "1859"]
[BlackElo "1545"]
[Annotator "NA"]
[PlyCount "57"]
[EventDate "2018.10.20"]
[EventType "swiss"]
[EventCountry "GRE"]
[SourceTitle "playchess.com"]
[Source "ChessBase"]
[SourceQuality "1"]
[TimeControl "40/5400+30:1800+30"]

1. e4 {[%emt 0:00:00]} d5 {[%emt 0:00:00]} 2. exd5 {[%emt 0:00:00]} Qxd5 {[%emt 0:00:00]} 3. Nc3 {[%emt 0:00:00]} Qa5 {[%emt 0:00:00]} 4. Bc4 {[%emt 0:00:14]} Nf6 {[%emt 0:00:18]} 5. d3 {[%emt 0:00:25]} c6 {[%emt 0:00:06]} 6. Bd2 {[%emt 0:00:23]} Qc7 {[%emt 0:00:18]} 7. Qe2 {[%emt 0:02:42]} Bf5 {[%emt 0:01:40]} 8. Nf3 {[%emt 0:00:42]} e6 {[%emt 0:00:47]} 9. h3 {[%emt 0:01:31]} Nbd7 {[%emt 0:01:52]} 10. a3 {[%emt 0:14:25]} Nb6 {[%emt 0:01:46]} 11. Ba2 {[%emt 0:02:15]} Nbd5 {[%emt 0:03:44]} 12. Nxd5 {[%emt 0:06:39]} Nxd5 {[%emt 0:00:07]} 13. O-O-O {[%emt 0:03:47]} Bd6 {[%emt 0:02:12]} 14. Nd4 {[%emt 0:03:00]} Bg6 {[%emt 0:01:42]} 15. Rde1 {[%emt 0:05:26]} O-O-O {[%emt 0:02:56]} 16. h4 {[%emt 0:03:54]} e5 {[%emt 0:23:53]} 17. Bxd5 {[%emt 0:05:39]} exd4 {[%emt 0:12:54]} 18. h5 {[%emt 0:09:01]} Bf5 {[%emt 0:09:18]} 19. Bb3 {[%emt 0:03:47]} Qd7 {[%emt 0:06:04]} 20. h6 {[%emt 0:05:45]} gxh6 {[%emt 0:04:33]} 21. Bxh6 {[%emt 0:00:50]} Bg6 {[%emt 0:03:56]} 22. Bg7 {[%emt 0:07:39]} Bf4+ {[%emt 0:02:39]} 23. Kb1 {[%emt 0:00:51]} Rhe8 {[%emt 0:01:10]} 24. Qf3 {[%emt 0:01:00]} Bc7 {[%emt 0:01:11]} 25. Bf6 {[%emt 0:02:03]} Rxe1+ {[%emt 0:03:13]} 26. Rxe1 {[%emt 0:00:05]} Rf8 {[%emt 0:00:57]} 27. Re7 {[%emt 0:06:52]} Qd6 {[%emt 0:00:17]} 28. Bh4 {[%emt 0:00:04]} Qf4 {[%emt 0:02:51]} 29. Bg3 {[%emt 0:01:43]} 1-0